bitfinex/quotes_ETHUSD_20250413
["timestamp","ask_amount","ask_price","bid_price","bid_amount"]
[1744540739692,0.60477959,1615.9,1615.8,8.319578]
[1744540739956,12.37528,1616.2,1615.8,8.319578]
[1744540740157,0.60477959,1615.9,1615.8,8.319578]
[1744540740358,6.97213,1616.3,1615.8,2.130898]
[1744540740569,0.60477959,1615.9,1615.8,7.00076]
[1744540740857,0.60477959,1615.9,1615.8,13.18962]
[1744540741070,6.18736,1616.2,1615.8,13.18962]
[1744540741268,0.60477959,1615.9,1615.8,13.18962]
[1744540741484,6.18736,1616.2,1615.8,13.18962]
[1744540741794,0.60477959,1616.1,1615.8,7.00076]
[1744540741993,6.79268959,1616.1,1615.8,0.8119]
[1744540742175,0.60477959,1616.1,1615.8,0.8119]
[1744540742953,0.60477959,1616.1,1615.8,7.00058]
[1744540743155,0.60477959,1616.1,1615.8,7.700638]
[1744540743702,0.60477959,1616.1,1615.8,13.889318]
[1744540744889,0.60477959,1616.1,1615.9,6.1884]
[1744540745093,0.60477959,1616.1,1615.8,7.700638]
[1744540745398,0.60477959,1616.1,1615.8,13.889398]
[1744540745605,0.60477959,1616.1,1615.9,6.18842]
[1744540746582,0.60477959,1616.1,1615.8,13.889398]
[1744540748876,0.60477959,1616.1,1615.9,6.18846]
[1744540749575,0.60477959,1616.1,1615.8,7.700638]
[1744540750304,6.79265959,1616.1,1615.8,13.889398]
[1744540751208,6.79265959,1616.1,1615.8,13.18934]
[1744540753015,6.79265959,1616.1,1615.7,6.129]
[1744540753016,7.01631,1616.0,1615.7,12.3181]
[1744540753219,13.20473,1616.0,1615.7,6.129]
[1744540753403,0.60696192,1615.9,1615.5,0.7875]
[1744540753604,6.18943,1615.7,1615.4,6.00910383]
[1744540753918,0.60857493,1615.6,1615.4,6.19039]
[1744540754119,0.60857493,1615.6,1615.5,6.97753]
[1744540754425,12.37669,1616.0,1615.6,6.18952]
[1744540754917,6.79498745,1615.9,1615.6,6.18952]
[1744540755482,13.81172745,1615.9,1615.5,6.97753]
[1744540755680,7.62298745,1615.9,1615.5,13.16743]
[1744540755903,7.62298745,1615.9,1615.5,14.6771382]
[1744540756244,7.62298745,1615.9,1615.6,6.18964]
[1744540756609,13.81169745,1615.9,1615.6,6.18964]
[1744540756810,13.81177745,1615.9,1615.5,13.16731]
[1744540757013,0.60648745,1615.9,1615.6,12.37896]
[1744540757310,0.60648745,1615.9,1615.7,6.18926]
[1744540757525,0.60648745,1615.9,1615.6,7.506076]
[1744540757912,0.60648745,1615.9,1615.6,6.18943]
[1744540758107,0.60648745,1615.9,1615.7,6.18913]
[1744540758311,12.37571,1616.1,1615.7,13.19302]
[1744540758507,0.60648745,1616.0,1615.8,6.18887]
[1744540758833,0.60648745,1616.0,1615.8,13.077957]
[1744540759219,13.1865,1616.2,1615.8,13.077957]
[1744540759424,0.6046847,1615.9,1615.8,13.077957]
[1744540759642,13.1865,1616.2,1615.8,13.077957]
[1744540759854,0.6046847,1615.9,1615.7,7.004]
[1744540760149,0.6046847,1615.8,1615.6,6.18956]
[1744540760350,7.00025,1615.9,1615.6,6.18956]
[1744540760552,0.6046847,1615.8,1615.6,6.18956]
[1744540760737,0.6046847,1615.8,1615.6,7.508991]
[1744540761545,0.6046847,1615.8,1615.6,1.319431]
[1744540761754,0.6046847,1615.8,1615.5,7.00475]
[1744540761919,6.7935847,1615.8,1615.5,7.00475]
[1744540762526,6.7935847,1615.8,1615.5,6.18995]
[1744540763116,6.18945,1615.7,1615.4,6.19034]
[1744540763313,6.96157,1615.6,1615.3,13.07497]
[1744540763519,0.6046847,1615.5,1615.3,21.192236]
[1744540764725,0.6046847,1615.5,1615.4,6.19041]
[1744540764931,6.96135,1615.7,1615.4,6.19041]
[1744540765129,0.6046847,1615.6,1615.4,6.19041]
[1744540767350,0.6046847,1615.6,1615.3,19.26552]
[1744540767558,0.6046847,1615.6,1615.3,21.192072]
[1744540768458,6.7944247,1615.6,1615.3,6.128]
[1744540768672,0.6046847,1615.6,1615.3,12.31858]
[1744540768828,0.6046847,1615.6,1615.4,13.15934]
[1744540769031,0.6046847,1615.6,1615.4,6.96906]
[1744540769560,0.6046847,1615.6,1615.5,6.19003]
[1744540769956,7.02225,1615.8,1615.5,6.19003]
[1744540770160,0.6046847,1615.7,1615.5,6.19003]
[1744540770661,0.6046847,1615.7,1615.6,6.18965]
[1744540770868,6.18866,1615.9,1615.6,6.18965]
[1744540771063,0.6046847,1615.7,1615.6,6.18965]
[1744540771263,12.37741,1615.9,1615.6,6.18965]
[1744540771428,0.60212225,1615.7,1615.6,6.18965]
[1744540771630,6.18866,1615.9,1615.6,6.18965]
[1744540771865,0.60212225,1615.7,1615.6,6.18965]
[1744540772064,6.18866,1615.9,1615.6,6.886495]
[1744540772226,0.60212225,1615.7,1615.6,6.886495]
[1744540772431,6.18866,1615.9,1615.6,6.18965]
[1744540772632,0.60212225,1615.7,1615.6,6.18965]
[1744540772826,6.18866,1615.9,1615.6,6.18965]
[1744540773371,0.60212225,1615.8,1615.6,6.18965]
[1744540773667,0.60212225,1615.8,1615.7,6.808225]
[1744540774055,7.0214,1616.0,1615.7,6.808225]
[1744540774256,7.0214,1616.0,1615.7,6.18926]
[1744540774455,0.6036407,1615.9,1615.7,6.18926]
[1744540775077,0.6036407,1615.9,1615.6,12.37906]
[1744540775576,0.6036407,1615.9,1615.6,6.18953]
[1744540777432,6.7921707,1615.9,1615.6,6.18953]
[1744540777667,6.18901,1615.8,1615.5,0.7788]
[1744540777873,6.18926,1615.7,1615.4,14.309416]
[1744540778173,0.6036407,1615.6,1615.4,14.309416]
[1744540781702,0.6036407,1615.6,1615.4,8.119026]
[1744540783778,0.6036407,1615.6,1615.4,14.309316]
[1744540784202,0.7617,1615.8,1615.5,7.6209316]
[1744540784497,0.60421022,1615.7,1615.5,7.6209316]
[1744540784795,13.15329,1615.9,1615.5,6.19]
[1744540784996,6.79244593,1615.8,1615.5,6.18992]
[1744540785158,0.60354593,1615.8,1615.6,6.94062]
[1744540786000,0.60354593,1615.8,1615.6,13.13014]
[1744540786493,0.60354593,1615.8,1615.6,6.94062]
[1744540788295,0.60354593,1615.8,1615.6,8.253675]
[1744540790493,0.60354593,1615.8,1615.6,14.443195]
[1744540791199,0.60354593,1615.8,1615.6,8.253675]
[1744540791853,0.60354593,1615.8,1615.6,14.443205]
[1744540792170,0.60354593,1615.8,1615.6,14.443195]
[1744540792695,0.60354593,1615.8,1615.6,8.253675]
[1744540793899,0.60354593,1615.8,1615.6,14.443205]
[1744540795589,12.37647,1616.0,1615.6,14.443205]
[1744540795795,0.60563359,1615.9,1615.6,14.443205]
[1744540796164,0.60563359,1615.9,1615.7,6.1892]
[1744540799276,0.60563359,1615.9,1615.7,7.6334405]
[1744540799609,13.17196,1616.1,1615.8,6.18888]
[1744540799811,0.60639269,1616.0,1615.8,6.18888]
[1744540801010,0.60639269,1616.0,1615.8,6.18877]
[1744540801217,0.60639269,1616.0,1615.9,6.1885]
[1744540801511,6.97038,1616.2,1615.9,6.1885]
[1744540801716,6.97038,1616.2,1615.5,6.19002]
[1744540801717,0.783,1615.9,1615.4,13.09778]
[1744540801915,6.18938,1615.7,1615.4,12.31638]
[1744540802231,6.18938,1615.7,1615.4,18.50664]
[1744540802407,6.18938,1615.7,1615.4,20.435444]
[1744540802905,6.18898,1615.8,1615.4,20.435444]
[1744540803070,0.6054438,1615.6,1615.5,6.19003]
[1744540803273,6.18898,1615.8,1615.5,6.19003]
[1744540803475,0.6054438,1615.6,1615.5,6.19003]
[1744540803705,12.37818,1615.8,1615.5,2.0435204]
[1744540803884,0.8068,1615.5,1615.4,6.126]
[1744540804217,1.4122438,1615.5,1615.4,6.126]
[1744540806117,1.4122438,1615.5,1615.2,6.19104]
[1744540807114,1.4122438,1615.5,1615.1,13.07358]
[1744540807416,0.6054438,1615.5,1615.3,12.38119]
[1744540807616,0.6054438,1615.5,1615.4,7.01741]
[1744540807913,13.13231,1615.8,1615.4,13.20782]
[1744540808114,0.6054438,1615.5,1615.4,13.20782]
[1744540808314,13.13155,1615.9,1615.5,12.37951]
[1744540808515,6.94285,1615.9,1615.6,6.18944]
[1744540808717,6.94285,1615.9,1615.5,12.38006]
[1744540809023,12.37837,1615.8,1615.4,19.33353]
[1744540809500,6.18927,1615.7,1615.4,13.14324]
[1744540809889,6.18927,1615.7,1615.4,19.3335]
[1744540810090,12.37837,1615.8,1615.4,19.3335]
[1744540811202,6.94275,1615.9,1615.5,12.3799]
[1744540811403,6.94275,1615.9,1615.5,14.05960527]
[1744540811604,0.60269172,1615.8,1615.5,14.05960527]
[1744540812823,0.60269172,1615.8,1615.5,7.86965527]
[1744540813025,12.98072172,1615.8,1615.4,19.3337]
[1744540818912,12.98072172,1615.8,1615.4,13.14335]
[1744540818913,6.18933,1615.7,1615.4,13.14335]
[1744540819233,7.5530363,1615.6,1615.4,6.126]
[1744540819532,0.6031663,1615.6,1615.4,12.31624]
[1744540819839,0.6031663,1615.6,1615.4,18.50651]
[1744540820032,0.6031663,1615.6,1615.4,14.166891]
[1744540822909,0.6031663,1615.6,1615.4,12.31624]
[1744540823109,0.6031663,1615.6,1615.4,6.126]
[1744540824537,6.7928863,1615.6,1615.4,6.126]
[1744540824705,7.01114,1615.5,1615.2,6.19116]
[1744540825247,0.6031663,1615.4,1615.2,8.041722]
[1744540826025,0.6031663,1615.4,1615.2,8.041632]
[1744540826230,0.6031663,1615.4,1615.2,14.232702]
[1744540826599,0.6031663,1615.4,1615.2,8.041632]
[1744540827642,0.6031663,1615.4,1615.3,6.9836]
[1744540827941,6.18927,1615.7,1615.4,6.19021]
[1744540828513,12.37823,1615.8,1615.4,6.19021]
[1744540828950,1.23641415,1615.9,1615.3,6.98354]
[1744540828951,6.18937,1615.7,1615.3,13.10754]
[1744540829122,6.96705,1615.6,1615.3,12.31474]
[1744540830309,6.1902,1615.5,1615.3,6.124]
[1744540830537,12.38049,1615.5,1615.3,6.124]
[1744540830738,6.19096,1615.3,1615.0,6.124]
[1744540832068,6.19096,1615.3,1615.0,12.3159]
[1744540832262,6.96789,1615.4,1615.1,6.19152]
[1744540833085,6.95215,1615.5,1615.2,6.19102]
[1744540833247,0.7621,1615.5,1615.2,6.19101]
[1744540833568,6.18968,1615.6,1615.3,6.809891]
[1744540833771,6.18968,1615.6,1615.3,6.19079]
[1744540833967,6.95139,1615.7,1615.4,6.19038]
[1744540834175,6.95139,1615.7,1615.4,7.01448]
[1744540835128,13.14088,1615.7,1615.4,7.01448]
[1744540835334,6.18979,1615.6,1615.3,13.13875]
[1744540835664,12.37962,1615.6,1615.3,12.31465]
[1744540836045,6.18979,1615.6,1615.3,18.50528]
[1744540836245,6.95139,1615.7,1615.3,19.736745]
[1744540836474,13.14084,1615.7,1615.3,19.736745]
[1744540836764,13.14084,1615.7,1615.3,13.546095]
[1744540837844,13.14084,1615.7,1615.3,19.736775]
[1744540838564,6.18929,1615.7,1615.4,7.02188]
[1744540839672,12.37873,1615.7,1615.4,7.02188]
[1744540841438,6.18929,1615.7,1615.4,7.02188]
[1744540841738,0.91500132,1615.6,1615.4,7.02188]
[1744540841945,0.91500132,1615.6,1615.4,9.0786775]
[1744540844878,0.91500132,1615.6,1615.4,15.2689275]
[1744540845077,13.13886,1615.8,1615.4,15.2689275]
[1744540845575,0.91500132,1615.7,1615.4,15.2689275]
[1744540846680,0.91500132,1615.7,1615.4,15.2688175]
[1744540847181,7.10426132,1615.7,1615.4,9.0785475]
[1744540847475,0.91500132,1615.7,1615.5,6.19003]
[1744540850578,0.91500132,1615.7,1615.4,15.2688175]
[1744540851780,0.91500132,1615.7,1615.5,7.71690175]
[1744540853381,7.10429132,1615.7,1615.5,1.52688175]
[1744540853547,13.29373132,1615.7,1615.4,7.02175]
[1744540854083,7.10429132,1615.7,1615.4,13.21201]
[1744540854282,0.91500132,1615.7,1615.4,13.21201]
[1744540854979,0.91500132,1615.7,1615.5,12.37988]
[1744540855178,13.13032,1615.9,1615.5,13.701018]
[1744540855479,0.87551582,1615.8,1615.5,13.701018]
[1744540857375,0.87551582,1615.8,1615.5,7.511018]
[1744540857376,13.25354582,1615.8,1615.5,7.511018]
[1744540858489,7.06440582,1615.8,1615.5,7.511018]
[1744540859591,13.25344582,1615.8,1615.5,7.511018]
[1744540859894,7.06440582,1615.8,1615.5,7.511018]
[1744540861170,7.06440582,1615.8,1615.7,6.18926]
[1744540861171,0.87551582,1615.8,1615.7,6.18926]
[1744540861487,6.18742,1616.2,1615.9,6.18847]
[1744540861695,7.06403202,1616.1,1615.8,7.01204]
[1744540862197,13.25194202,1616.1,1615.8,7.01204]
[1744540862723,13.25194202,1616.1,1615.7,6.95505]
[1744540862923,6.18819,1616.0,1615.7,8.34462118]
[1744540863283,7.06649482,1615.9,1615.7,0.7659]
[1744540863519,7.06649482,1615.9,1615.5,1.321138]
[1744540863520,6.18901,1615.8,1615.5,6.93988]
[1744540863726,6.18951,1615.7,1615.4,6.12]
[1744540863892,12.37898,1615.7,1615.4,6.12]
[1744540864223,0.87970286,1615.6,1615.4,6.12]
[1744540864792,0.87970286,1615.6,1615.4,12.31039]
[1744540864997,0.87970286,1615.6,1615.4,20.425794]
[1744540865312,12.37795,1615.8,1615.4,20.425794]
[1744540865713,0.87732401,1615.7,1615.4,14.235404]
[1744540867629,0.87732401,1615.7,1615.4,20.425674]
[1744540869032,7.06676401,1615.7,1615.4,8.045104]
[1744540869234,13.25637401,1615.7,1615.4,6.12]
[1744540869410,6.19003,1615.5,1615.4,6.12]
[1744540869836,7.06735401,1615.5,1615.4,6.12]
[1744540871529,7.06735401,1615.5,1615.2,10.00142]
[1744540871738,7.06735401,1615.5,1615.2,16.19244]
[1744540871945,6.19003,1615.5,1615.2,18.423684]
[1744540872615,6.18997,1615.6,1615.3,6.1907]
[1744540872815,0.87732401,1615.5,1615.3,6.1907]
[1744540873448,7.06751401,1615.5,1615.2,3.041644]
[1744540873750,13.25784401,1615.5,1615.2,3.041644]
[1744540874144,6.19094,1615.3,1615.1,6.12]
[1744540874551,0.87446895,1615.2,1615.1,6.12]
[1744540884557,0.87446895,1615.2,1615.1,13.11836]
[1744540884759,0.87446895,1615.2,1615.1,6.9268]
[1744540885228,12.38122,1615.4,1615.1,6.9268]
[1744540885424,0.87446895,1615.3,1615.1,6.9268]
[1744540885737,6.19081,1615.3,1615.1,6.12]
[1744540886066,0.87446895,1615.2,1615.1,6.12]
[1744540886269,6.19081,1615.3,1615.1,6.12]
[1744540886452,0.87446895,1615.2,1615.1,6.12]
[1744540887221,1.63136895,1615.2,1615.1,6.12]
[1744540887462,0.87446895,1615.2,1615.1,6.12]
[1744540887668,0.7569,1615.3,1615.1,6.12]
[1744540887901,12.38118,1615.4,1615.1,6.12]
[1744540887902,0.87446895,1615.2,1615.1,6.12]
[1744540888101,6.1905,1615.4,1615.1,12.31156]
[1744540888288,0.87446895,1615.3,1615.1,19.32922]
[1744540888489,6.1905,1615.4,1615.1,19.32922]
[1744540888687,0.87446895,1615.3,1615.2,6.19118]
[1744540888876,6.18934,1615.7,1615.4,7.0164]
[1744540889076,0.85958394,1615.6,1615.5,12.37986]
[1744540889275,11.01094078,1616.0,1615.6,7.01539]
[1744540889475,0.86082237,1615.9,1615.6,13.20474]
[1744540889705,0.86082237,1615.9,1615.6,15.137014]
[1744540890395,0.86082237,1615.9,1615.6,8.947664]
[1744540890595,6.18916,1615.8,1615.5,6.9441]
[1744540890798,0.86348908,1615.7,1615.5,6.9441]
[1744540891495,0.86348908,1615.7,1615.5,13.13405]
[1744540891704,0.86348908,1615.7,1615.6,6.18965]
[1744540891905,10.25372078,1616.1,1615.7,6.18888]
[1744540892219,0.86348908,1616.0,1615.8,0.8261]
[1744540894406,0.86348908,1616.0,1615.6,0.7923]
[1744540894716,6.18909,1615.8,1615.5,12.30795]
[1744540894948,0.86425083,1615.7,1615.6,6.18965]
[1744540895215,6.18858,1615.9,1615.6,8.03941]
[1744540895517,0.86425083,1615.8,1615.6,8.03941]
[1744540895919,0.86425083,1615.8,1615.6,1.84976]
[1744540899884,0.86425083,1615.8,1615.5,18.49779]
[1744540900085,12.3773,1615.9,1615.5,18.49779]
[1744540900286,0.86425083,1615.8,1615.5,18.49779]
[1744540900615,0.86425083,1615.8,1615.5,12.30788]
[1744540901119,0.86425083,1615.8,1615.5,18.4978]
[1744540901322,0.86425083,1615.8,1615.6,1.84978]
[1744540902184,7.82852083,1615.8,1615.5,12.30788]
[1744540902393,6.18941,1615.7,1615.5,6.118]
[1744540902728,0.86872736,1615.6,1615.5,6.118]
[1744540903295,6.19006,1615.5,1615.2,13.07303]
[1744540903495,6.96505,1615.6,1615.2,20.65855115]
[1744540903799,0.86825127,1615.5,1615.3,6.19078]
[1744540904001,0.86825127,1615.5,1615.2,14.46742115]
[1744540904190,6.19016,1615.5,1615.2,14.46742115]
[1744540904394,0.86825127,1615.4,1615.2,14.46742115]
[1744540904638,0.86825127,1615.4,1615.2,20.65849115]
[1744540905138,0.86825127,1615.4,1615.2,14.46742115]
[1744540908093,6.96505,1615.6,1615.3,7.32351243]
[1744540908298,0.86825127,1615.5,1615.3,7.32351243]
[1744540908534,0.86825127,1615.5,1615.4,6.19041]
[1744540908739,13.15606,1615.8,1615.4,6.19041]
[1744540908924,0.86606088,1615.5,1615.4,13.15462]
[1744540909120,13.15606,1615.8,1615.4,14.58323324]
[1744540909320,7.05535088,1615.7,1615.4,0.7738]
[1744540909492,6.1897,1615.6,1615.3,6.19074]
[1744540909696,0.86691807,1615.5,1615.3,6.19074]
[1744540909930,0.86691807,1615.5,1615.3,12.38139]
[1744540910137,0.86691807,1615.5,1615.4,6.96421]
[1744540910338,0.86691807,1615.5,1615.4,8.279696]
[1744540910535,13.15611,1615.8,1615.4,14.470106]
[1744540910696,0.8670133,1615.5,1615.4,13.15462]
[1744540910899,13.15612,1615.8,1615.4,13.15462]
[1744540911093,0.8670133,1615.7,1615.4,13.15462]
[1744540911908,0.8670133,1615.7,1615.5,6.18986]
[1744540912304,0.8670133,1615.7,1615.6,6.95935]
[1744540912624,6.18819,1616.0,1615.7,6.18925]
[1744540914318,6.18819,1616.0,1615.7,12.3784]
[1744540914634,7.01079,1616.1,1615.7,6.18911]
[1744540914844,7.01079,1616.1,1615.8,6.18881]
[1744540915347,12.37486,1616.2,1615.8,12.37756]
[1744540915546,12.37497,1616.2,1615.9,8.195936]
[1744540915905,12.37497,1616.2,1615.9,2.007456]
[1744540916557,0.8676798,1616.1,1615.9,2.007456]
[1744540918350,0.8676798,1616.1,1615.9,8.195926]
[1744540918562,0.8676798,1616.1,1616.0,6.18811]
[1744540918854,6.20672,1616.4,1616.1,6.18762]
[1744540919048,0.8676798,1616.3,1616.1,13.16293]
[1744540919223,0.8676798,1616.3,1616.0,14.5260586]
[1744540919408,7.0546498,1616.3,1616.0,14.5260586]
[1744540919613,7.0546498,1616.3,1616.0,7.5503886]
[1744540919614,0.8143,1616.2,1616.0,7.5503886]
[1744540919813,6.18697,1616.3,1616.0,7.5503886]
[1744540920013,0.8676798,1616.2,1616.1,6.94276886]
[1744540920346,7.02097,1616.4,1616.1,6.94276886]
[1744540920534,0.8676798,1616.3,1616.1,6.94276886]
[1744540921044,7.0547798,1616.3,1616.1,0.75503886]
[1744540922518,13.2419298,1616.3,1616.1,0.75503886]
[1744540922725,6.18739,1616.2,1616.0,7.5503886]
[1744540922925,0.87501023,1616.1,1616.0,7.5503886]
[1744540923850,7.83785023,1616.1,1615.7,13.08998]
[1744540924054,6.18829,1616.0,1615.7,13.08998]
[1744540924523,6.18829,1616.0,1615.7,13.0899]
[1744540924724,0.87472469,1615.9,1615.7,13.0899]
[1744540926639,7.06349469,1615.9,1615.6,0.7888]
[1744540926839,13.15301,1615.8,1615.4,69.24562]
[1744540927040,0.87367765,1615.7,1615.5,6.112]
[1744540927238,7.06325765,1615.7,1615.2,13.08676]
[1744540927460,6.95058,1615.5,1615.2,6.112]
[1744540927622,7.06207791,1615.4,1615.2,6.112]
[1744540927825,6.1908,1615.3,1615.0,6.19187]
[1744540928029,0.7604,1615.1,1614.9,6.112]
[1744540928332,0.7604,1615.1,1614.8,6.97641]
[1744540928333,6.95226,1615.1,1614.8,3.0]
[1744540928537,0.87129747,1615.0,1614.8,3.0]
[1744540928850,13.25560747,1615.0,1614.7,59.181]
[1744540929036,7.06338747,1615.0,1614.7,59.181]
[1744540929239,0.87129747,1615.0,1614.7,73.30096429]
[1744540929654,0.87129747,1615.0,1614.7,67.10792429]
[1744540929948,0.87129747,1615.0,1614.7,60.99591429]
[1744540930540,0.87129747,1615.0,1614.7,67.18882429]
[1744540930724,0.87129747,1615.0,1614.7,60.99589429]
[1744540931945,0.87129747,1615.0,1614.7,67.18883429]
[1744540934679,0.87129747,1615.0,1614.8,6.19271]
[1744540936475,0.87129747,1615.0,1614.7,60.99588429]
[1744540937690,0.87129747,1615.0,1614.7,67.18880429]
[1744540938586,0.87129747,1615.0,1614.8,6.19266]
[1744540941707,0.87129747,1615.0,1614.7,60.99588429]
[1744540941860,0.87129747,1615.0,1614.7,7.92688429]
[1744540942060,0.87129747,1615.0,1614.7,14.11985429]
[1744540943456,0.87129747,1615.0,1614.7,14.11986429]
[1744540943725,0.87129747,1615.0,1614.7,12.38588]
[1744540944295,0.87129747,1615.0,1614.8,6.1925]
[1744540944600,0.87129747,1615.0,1614.7,12.3861]
[1744540945508,0.87129747,1615.0,1614.7,6.19305]
[1744540945682,0.87129747,1615.0,1614.7,6.19304]
[1744540945683,7.06339747,1615.0,1614.7,6.19304]
[1744540947110,0.87129747,1615.0,1614.7,12.386]
[1744540947411,0.87129747,1615.0,1614.7,14.31427]
[1744540948176,7.06325747,1615.0,1614.7,8.12123]
[1744540948502,7.06325747,1615.0,1614.7,14.31417]
[1744540948912,0.87129747,1615.0,1614.8,6.19271]
[1744540951213,0.87129747,1615.0,1614.7,6.19294]
[1744540951427,7.06346747,1615.0,1614.7,6.19294]
[1744540951718,0.85520086,1614.9,1614.7,6.19294]
[1744540951872,6.95204,1615.1,1614.7,8.121244]
[1744540952077,0.85520086,1615.0,1614.7,8.121244]
[1744540952303,0.85520086,1615.0,1614.8,6.19257]
[1744540952530,0.85520086,1615.0,1614.9,6.19233]
[1744540952711,7.01936,1615.2,1614.9,6.19233]
[1744540952923,0.85520086,1615.1,1614.9,6.19233]
[1744540953215,7.01936,1615.2,1614.9,6.19233]
[1744540953375,0.85520086,1615.0,1614.8,6.19257]
[1744540953581,6.19157,1615.1,1614.8,12.38515]
[1744540953775,0.85520086,1614.9,1614.8,12.38515]
[1744540953982,0.8281,1615.2,1614.9,13.15853]
[1744540954217,0.8281,1615.3,1615.0,6.1918]
[1744540954525,0.8281,1615.5,1615.2,6.19094]
[1744540954680,0.8281,1615.5,1615.2,6.96519]
[1744540954880,0.8281,1615.5,1615.2,13.15628]
[1744540955081,0.8281,1615.5,1615.2,15.083008]
[1744540955589,0.8281,1615.6,1615.3,6.19077]
[1744540955792,0.8281,1615.6,1615.3,12.38154]
[1744540956202,0.8281,1615.6,1615.4,6.19036]
[1744540956992,0.8281,1615.6,1615.3,6.19077]
[1744540957621,7.01781,1615.6,1615.2,8.891928]
[1744540957812,7.01781,1615.6,1615.2,6.9652]
[1744540958010,6.19004,1615.5,1615.2,6.1911]
[1744540958429,13.20782,1615.6,1615.2,12.38213]
[1744540958830,7.01781,1615.6,1615.2,12.38213]
[1744540959035,13.2077,1615.6,1615.2,6.19103]
[1744540959244,13.2077,1615.6,1615.2,12.38208]
[1744540961041,13.2077,1615.6,1615.2,6.19103]
[1744540961541,7.04860013,1615.5,1615.2,6.19103]
[1744540961737,7.04860013,1615.5,1615.1,13.132]
[1744540961738,6.19058,1615.4,1615.1,13.132]
[1744540962034,12.38119,1615.4,1615.2,3.0]
[1744540962243,1.68734013,1615.3,1615.2,3.0]
[1744540962901,0.85844013,1615.3,1615.2,3.0]
[1744540963240,7.01893,1615.5,1615.2,3.0]
[1744540963419,0.85844013,1615.3,1615.1,18.49392]
[1744540963622,7.01893,1615.5,1615.1,20.726262]
[1744540963829,0.85844013,1615.2,1615.1,23.726262]
[1744540964034,7.01893,1615.5,1615.1,23.726262]
[1744540964440,0.85844013,1615.4,1615.1,20.726262]
[1744540964738,0.85844013,1615.4,1615.1,14.534762]
[1744540964905,7.04888013,1615.4,1615.1,6.111]
[1744540966643,13.23946013,1615.4,1615.1,6.111]
[1744540966848,6.97037,1615.3,1614.9,15.38445]
[1744540967049,13.16135,1615.3,1614.9,9.19222]
[1744540967352,0.86053668,1615.2,1614.9,9.19222]
[1744540968514,0.86053668,1615.2,1614.9,9.19218]
[1744540968852,0.86053668,1615.2,1614.9,15.3844]
[1744540971123,0.86053668,1615.2,1615.1,6.19156]
[1744540971353,0.759,1615.4,1615.1,6.19156]
[1744540971521,0.86053668,1615.3,1615.1,6.19156]
[1744540971720,6.94943,1615.4,1615.1,6.19156]
[1744540971934,0.86053668,1615.3,1615.1,12.38297]
[1744540972145,6.94943,1615.4,1615.1,12.38297]
[1744540972419,0.86053668,1615.3,1615.1,12.38282]
[1744540972619,0.86053668,1615.3,1615.1,6.19141]
[1744540972945,0.86006034,1615.2,1615.1,6.19141]
[1744540973124,6.19043,1615.4,1615.1,6.19141]
[1744540973321,0.86006034,1615.3,1615.1,12.38286]
[1744540973520,6.19043,1615.4,1615.1,12.38286]
[1744540973722,0.86006034,1615.3,1615.1,12.38286]
[1744540974054,6.19043,1615.4,1615.1,12.38286]
[1744540974254,0.86006034,1615.2,1615.1,6.19141]
[1744540974554,6.19043,1615.4,1615.1,6.19141]
[1744540974755,0.86006034,1615.3,1615.1,6.19141]
[1744540974953,0.7684,1615.6,1615.2,6.19118]
[1744540974954,6.95815,1615.6,1615.2,6.19118]
[1744540975171,0.86006034,1615.5,1615.3,6.95677]
[1744540975483,0.86006034,1615.5,1615.3,6.95674]
[1744540980167,0.86006034,1615.5,1615.3,6.19064]
[1744540981147,0.86006034,1615.5,1615.4,6.97831]
[1744540981350,6.99611,1615.8,1615.4,13.16872]
[1744540981669,7.05028246,1615.7,1615.3,6.19071]
[1744540981871,7.05028246,1615.7,1615.2,6.8939]
[1744540981872,12.37958,1615.6,1615.2,19.2762]
[1744540982068,0.8072,1615.5,1615.2,19.2762]
[1744540982381,14.05067861,1615.5,1615.2,6.106]
[1744540982582,6.19042,1615.4,1615.2,6.106]
[1744540982944,0.86310861,1615.3,1615.2,9.106]
[1744540983456,6.1908,1615.3,1615.2,6.106]
[1744540983788,15.23410338,1615.3,1615.0,6.19191]
[1744540983992,13.99598138,1615.3,1615.0,3.0]
[1744540984972,7.80495138,1615.3,1615.0,3.0]
[1744540985150,7.80495138,1615.3,1615.0,9.19191]
[1744540986948,13.99592138,1615.3,1615.0,9.19191]
[1744540987149,7.80495138,1615.3,1615.0,9.19191]
[1744540987350,13.99594138,1615.3,1615.0,3.0]
[1744540990189,6.1912,1615.2,1615.0,3.0]
[1744540990657,0.86225138,1615.1,1615.0,3.0]
[1744540990986,6.1912,1615.2,1615.0,3.0]
[1744540991172,0.86225138,1615.1,1615.0,3.0]
[1744540991364,6.1912,1615.2,1615.0,3.0]
[1744540991559,0.86225138,1615.1,1615.0,3.0]
[1744540991767,6.1912,1615.2,1615.0,3.0]
[1744540991967,0.86225138,1615.1,1615.0,3.0]
[1744540992166,6.1912,1615.2,1615.0,3.0]
[1744540992381,0.86225138,1615.1,1615.0,3.0]
[1744540992567,6.1912,1615.2,1615.0,3.0]
[1744540992773,0.86225138,1615.1,1615.0,3.0]
[1744540993166,6.1912,1615.2,1615.0,3.0]
[1744540993369,0.86044122,1615.1,1615.0,3.0]
[1744540993575,6.1912,1615.2,1615.0,3.0]
[1744540993878,0.86044122,1615.1,1615.0,3.0]
[1744540994272,13.13385,1615.3,1615.0,3.0]
[1744540994500,0.86044122,1615.1,1615.0,3.0]
[1744540994671,14.447235,1615.3,1615.0,3.0]
[1744540994999,6.97382,1615.0,1614.7,11.19302]
[1744540995207,0.86044122,1614.9,1614.7,6.19302]
[1744540995496,7.05290122,1614.9,1614.6,12.30036]
[1744540995700,7.05290122,1614.9,1614.7,3.0]
[1744540996073,6.19246,1614.9,1614.7,3.0]
[1744540996279,6.97382,1615.0,1614.7,3.0]
[1744540996280,6.97382,1615.0,1614.7,9.19298]
[1744540996757,0.85815481,1614.9,1614.7,9.19298]